Cogmind - Beta 14 @@@ ROGUE MODE // 2024.11.17 @ 12:33:26 Player: Shimmyarah Result: Destroyed by GS-2EC(R) with Subdweller Laser Performance ------------- Evolutions (0) 0 Regions Visited (2) 400 Robots Destroyed (15) 75 Value Destroyed (208) 208 Prototype IDs (0) 0 Alien Tech Used (0) 0 Bonus (0) 0 TOTAL SCORE: 683 Bonus ------- None Cogmind --------- Core Integrity 0/250 Matter 280/300 Energy 105/125 System Corruption 1% Temperature Cool (6) Movement Treading (480) Ox4 Location -10/Subcaves Parts ------- > --- POWER (1) -------- Light Ion Engine > --- PROPULSION (2) --- Light Treads > --- UTILITY (2) ------ Huge Storage Unit Terrain Scan Processor > --- WEAPON (2) ------- Medium Laser Small Laser > --- INVENTORY (25) --- Subdweller Power Source Subdweller Power Source Light Treads Makeshift Leg Hover Unit Hover Unit Flight Unit Flight Unit Flight Unit Heat Sink Large Storage Unit Medium Battery (150) Medium Battery (150) High-capacity Matter Pod (59) Structural Scanner Visual Processing Unit Subdweller Optics Signal Interpreter Improved Terrain Scanner Light Assault Rifle Mining Laser Welding Torch Hammer Scrap Shield Fragment (49) Peak State ------------ > --- POWER ------------ Light Ion Engine > --- PROPULSION ------- Light Treads Light Treads > --- UTILITY ---------- Huge Storage Unit Terrain Scan Processor > --- WEAPON ----------- Medium Laser Hammer > --- INVENTORY -------- Subdweller Power Source Subdweller Power Source Light Treads Makeshift Leg Hover Unit Hover Unit Flight Unit Flight Unit Flight Unit Heat Sink Large Storage Unit Medium Battery Medium Battery High-capacity Matter Pod Structural Scanner Visual Processing Unit Signal Interpreter Improved Terrain Scanner Small Laser Light Assault Rifle Mining Laser Welding Torch Scrap Shield Fragment [Rating: 11] Favorites ----------- Power Light Ion Engine Engine Light Ion Engine Propulsion Wheel Treads Light Treads Leg Aluminum Leg Wheel Wheel Utility Huge Storage Unit Device Seismic Detector Storage Huge Storage Unit Processor Terrain Scan Processor Weapon Medium Laser Energy Gun Medium Laser Ballistic Gun Light Assault Rifle Launcher Grenade Launcher Special Weapon Mining Laser Impact Weapon Hammer Build | -11 -10 -10 ------- Run | Yrd Mat Sub Slots Evolved . | . . . Power . | . . . Propulsion . | . . . Utility . | . . . Weapon . | . . . Parts Attached 24 | 3 10 11 Power 1 | . . 1 Engine 1 | . . 1 Core . | . . . Reactor . | . . . Propulsion 8 | 2 4 2 Treads 4 | . 2 2 Leg . | . . . Wheel 4 | 2 2 . Hover . | . . . Flight . | . . . Utility 6 | 1 4 1 Device 3 | 1 2 . Storage 2 | . 2 . Processor 1 | . . 1 Hackware . | . . . Protection . | . . . Artifact . | . . . Weapon 9 | . 2 7 Energy Gun 4 | . 1 3 Energy Cannon . | . . . Ballistic Gun 1 | . . 1 Ballistic Cannon . | . . . Launcher 1 | . . 1 Special Weapon 1 | . 1 . Impact Weapon 2 | . . 2 Slashing Weapon . | . . . Piercing Weapon . | . . . Special Melee Weapon . | . . . Unidentified Prototypes . | . . . Parts Lost 6 | . . 6 Power 1 | . . 1 Propulsion 2 | . . 2 Utility 1 | . . 1 Weapon 2 | . . 2 Highest Loss Streak 6 | . . 6 To Critical Strikes . | . . . Average Slot Usage (%) 98 | . 100 97 Engine 13 | . 14 13 Treads 13 | . 6 20 Wheel 13 | . 21 7 Device 8 | . 14 3 Storage 14 | . 14 14 Processor 5 | . . 9 Energy Gun 13 | . 13 14 Ballistic Gun 8 | . 14 3 Impact Weapon 5 | . . 10 Peak Build Rating 11 | 8 9 11 Average Rating 8 | 6 8 9 On Entrance 7 | 6 8 9 Naked Turns . | . . . Heaviest Build 88 | 12 87 88 Greatest Support 40 | 20 40 40 Greatest Overweight (x) 28 | 3 4 28 Average Overweight (x) 2 | . 1 3 Largest Inventory Capacity 25 | 8 25 25 Average Capacity 20 | 8 17 25 Most Carried 25 | 8 25 25 Average Carried 18 | 7 14 22 Final Capacity 25 | 8 25 25 Final Carried 25 | 8 25 24 Class Distribution -------------------- 100% | Mutant Dominant Class ---------------- Mutant | -10/Materials Mutant | -10/Subcaves Resources | -11 -10 -10 ----------- Run | Yrd Mat Sub Matter Collected 530 | 244 122 164 Remotely . | . . . Salvage Created 430 | 129 184 117 Parts 36 | 10 19 7 Haulers Intercepted 1 | . 1 . Recyclers Shooed . | . . . Parts Field Recycled . | . . . Retrieved Matter . | . . . Parts Self-Destructed 5 | . . 5 Prevented . | . . . Kills | -11 -10 -10 ------- Run | Yrd Mat Sub Combat Hostiles Destroyed 6 | . 3 3 Guns 4 | . 3 1 AOE 2 | . . 2 Classes Destroyed 8 | 2 5 1 Worker 1 | . 1 . Builder 1 | . 1 . Tunneler 4 | 4 . . Hauler 1 | . 1 . Recycler 1 | 1 . . Watcher 1 | . 1 . Swarmer 3 | . 3 . Subdweller 3 | . . 3 Best Kill Streak 3 | 3 3 2 Combat Bots Only 3 | . 3 2 Max Kills in Single Turn 1 | 1 1 1 Gunslinging . | . . . Exploded 1 | . . 1 Melee . | . . . Uniques/NPCs Destroyed . | . . . Combat | -11 -10 -10 -------- Run | Yrd Mat Sub Hostile Shots Fired 62 | . 16 46 Missed 13 | . 6 7 Damage Taken 997 | . 112 885 Core 262 | . 18 244 Absorbed by Shields . | . . . Core Remaining (%) 100 | 100 . . Volleys Fired 53 | 14 23 16 Largest 2 | 2 2 2 Hottest 100 | 70 100 90 Shots Fired 93 | 28 43 22 Gun 89 | 28 42 19 Cannon . | . . . Launcher 3 | . . 3 Special 1 | . 1 . Kinetic 43 | 14 22 7 Thermal 47 | 14 21 12 Explosive 3 | . . 3 Electromagnetic . | . . . Robot Hit Streak 8 | 4 3 8 Robot Miss Streak 7 | 2 7 1 Penetration Max . | . . . Secondary Targets . | . . . Shots Hit Robots 46 | 10 16 20 Core Hits 22 | 7 9 6 Critical Kills . | . . . Critical Parts Destroyed . | . . . Critical Strikes 4 | 2 1 1 Burn 3 | 2 1 . Smash 1 | . . 1 Melee Attacks 34 | . . 34 Impact 34 | . . 34 Slashing . | . . . Piercing . | . . . Sneak Attacks 1 | . . 1 Combat Hostiles . | . . . Follow-up Attacks . | . . . Damage Inflicted 687 | 112 233 342 Guns 347 | 112 165 70 Cannons . | . . . Explosions 197 | . . 197 Melee 75 | . . 75 Ramming 68 | . 68 . Kinetic 126 | 36 90 . Thermal 221 | 76 75 70 Explosive 197 | . . 197 Electromagnetic . | . . . Impact 75 | . . 75 Slashing . | . . . Piercing . | . . . Highest Corruption 1 | . 1 1 Average Corruption 1 | . 1 1 Corruption Purged . | . . . Corruption Blocked . | . . . Effects 13 | . 4 9 Message Errors 4 | . 1 3 Heat Flow Errors 1 | . . 1 Energy Discharges 5 | . 2 3 Parts Rejected 1 | . . 1 Data Loss (minor) 2 | . 1 1 Overload Shots . | . . . Overflow Damage 3 | . . 3 Projectiles . | . . . Explosions 3 | . . 3 Melee . | . . . Knockbacks 2 | . 1 1 Impact 2 | . 1 1 Kinetic . | . . . Secondary . | . . . Self-Inflicted Damage 113 | . 33 80 Shots 3 | . . 3 Rammed 5 | . 5 . Targets Rammed 5 | . 5 . Kicked . | . . . Crushed . | . . . Highest Temperature 147 | 120 70 147 Average Temperature 40 | 60 20 87 Received Heat Transfer 120 | . . 120 Siege Activations . | . . . Robots Corrupted . | . . . Combat Hostiles . | . . . Parts Fried . | . . . Impact Corruptions . | . . . Robots Melted . | . . . Combat Hostiles . | . . . Parts Melted 2 | 2 . . Heat Transferred 852 | 370 296 186 Parts Sabotaged . | . . . Parts Stolen . | . . . Parts Stripped . | . . . Power Chain Reactions . | . . . Alert | -11 -10 -10 ------- Run | Yrd Mat Sub Peak Influence 91 | 25 91 . Initial 16 | . 16 . Average 43 | 14 48 . Maximum Alert Level . | . . . Low Security (%) 100 | 100 100 . Level 1 . | . . . Level 2 . | . . . Level 3 . | . . . Level 4 . | . . . Level 5 . | . . . High Security . | . . . Max Security . | . . . Squads Dispatched . | . . . Investigation . | . . . Extermination . | . . . Reinforcement . | . . . Assault . | . . . Garrison . | . . . Intercept . | . . . Searches Triggered . | . . . Construction Impeded . | . . . Haulers Reinforced . | . . . Active Scanning Responses . | . . . Cargo Convoy Interrupts . | . . . Stealth | -11 -10 -10 --------- Run | Yrd Mat Sub Distress Signals . | . . . Communications Jammed . | . . . Distress Signals . | . . . Times Spotted 12 | . 7 5 Peak Tracking Total 3 | . 3 2 Tactical Retreats . | . . . Traps | -11 -10 -10 ------- Run | Yrd Mat Sub Traps Triggered 1 | . 1 . Indirectly . | . . . Trap Hack Attempts . | . . . Triggered . | . . . Disarmed . | . . . Reprogrammed . | . . . Reused . | . . . Traps Extracted . | . . . Installed . | . . . Triggered . | . . . Machines | -11 -10 -10 ---------- Run | Yrd Mat Sub Machines Disabled . | . . . Max in Single Turn . | . . . Machines Repaired . | . . . Machines Dismantled . | . . . Machines Sabotaged . | . . . Overloaded Fab Kills . | . . . Hacking | -11 -10 -10 --------- Run | Yrd Mat Sub Machines Accessed 2 | . 2 . Terminals 2 | . 2 . Fabricators . | . . . Repair Stations . | . . . Recycling Units . | . . . Scanalyzers . | . . . Garrison Access . | . . . Total Hacks 5 | . 5 . Successful 3 | . 3 . Failed 2 | . 2 . Catastrophic 1 | . 1 . Database Lockouts . | . . . Manual 5 | . 5 . Terminals 5 | . 5 . Fabricators . | . . . Repair Stations . | . . . Recycling Units . | . . . Scanalyzers . | . . . Garrison Access . | . . . Terminal Hacks . | . . . Fabricator Hacks . | . . . Repair Station Hacks . | . . . Recycling Unit Hacks . | . . . Scanalyzer . | . . . Garrison Access Hacks . | . . . Unauthorized Hacks 3 | . 3 . Terminals 3 | . 3 . Botnet 2 | . 2 . Skim 1 | . 1 . Fabricators . | . . . Repair Stations . | . . . Recycling Units . | . . . Scanalyzers . | . . . Garrison Access . | . . . Data Cores Recovered . | . . . Used . | . . . Hacking Detections 2 | . 2 . Full Trace Events . | . . . Feedback Events . | . . . Feedback Blocked . | . . . Robot Schematics Acquired . | . . . Robots Built . | . . . Authchips . | . . . Time . | . . . Total Robot Build Rating . | . . . Part Schematics Acquired . | . . . Parts Built . | . . . Authchips . | . . . Time . | . . . Total Part Build Rating . | . . . Parts Repaired . | . . . Time . | . . . Parts Recycled . | . . . Recycled Matter . | . . . Retrieved Matter . | . . . Retrieved Components . | . . . Parts Scanalyzed . | . . . Part Schematics Acquired . | . . . Parts Damaged . | . . . Bothacking | -11 -10 -10 ------------ Run | Yrd Mat Sub Used RIF Installer . | . . . Robots Hacked . | . . . Non-combat . | . . . Combat . | . . . Robot Hacks Applied . | . . . Relay Couplers Released . | . . . Fabnet Peak Effective % . | . . . Robots Rewired . | . . . Allies Hacked . | . . . Hacks Repelled . | . . . Allies | -11 -10 -10 -------- Run | Yrd Mat Sub Total Allies . | . . . Largest Group . | . . . Highest-Rated Group . | . . . Highest-Rated Ally . | . . . Total Orders . | . . . Ally Attacks . | . . . Total Damage . | . . . Kills . | . . . Allies Corrupted . | . . . Allies Melted . | . . . Intel | -11 -10 -10 ------- Run | Yrd Mat Sub Robot Analysis Total . | . . . Derelict Logs Recovered . | . . . Drone Launches . | . . . Drone Recoveries . | . . . Exploration | -11 -10 -10 ------------- Run | Yrd Mat Sub Turns Passed 1715 | 120 739 856 Spaces Moved 711 | 38 390 283 Core 7 | 6 . 1 Treads 201 | . 45 156 Legs 19 | 19 . . Wheels 484 | 13 345 126 Hover . | . . . Flight . | . . . Fastest Speed 80 | 80 80 140 Average Speed 170 | 118 122 244 Slowest Speed 1450 | 200 320 1450 Overloaded Moves . | . . . Propulsion Burnouts . | . . . Robots Hopped . | . . . Cave-ins Triggered . | . . . Exploration Rate (%) 18 | 3 30 21 Regions Visited 2 Branch Regions 1 Pre-discovered Areas . | . . . Known Exits Taken . | . . . Unknown Exits Taken 2 | 1 1 . Scrap Searched . | . . . Spaces Dug 1 | . 1 . Terrain Destroyed 19 | . 1 18 Melee . | . . . Projectile 1 | . 1 . AOE 18 | . . 18 Terrain Rammed . | . . . Walls Destroyed . | . . . Machines Disabled . | . . . Actions | -11 -10 -10 --------- Run | Yrd Mat Sub Total 1061 | 87 610 364 Wait 194 | 27 154 13 Move 709 | 37 389 283 Hop . | . . . Pick Up 32 | 4 22 6 Fast Attach 1 | 1 . . Attach 8 | 2 . 6 Detach . | . . . Swap 15 | . 10 5 Drop 10 | 2 7 1 Fire 53 | 14 23 16 Melee 34 | . . 34 Ram 5 | . 5 . Kick . | . . . Crush . | . . . Escape Stasis . | . . . Rewire . | . . . Trap . | . . . Miscellaneous . | . . . Route ------- -11/Scrapyard -10/Materials (discovered 2 exits: [*Mat] / [*Sub]) -10/Subcaves History --------- Turn | Location | Event 1 | -11/Scrapyard | Discovered new exit (range 3) 121 | -11/Scrapyard | Entered Materials 304 | -10/Materials | Build established: Mutant 362 | -10/Materials | Discovered new exit (range 5) 839 | -10/Materials | Discovered new exit (range 7) 860 | -10/Materials | Entered Subcaves 962 | -10/Subcaves | Shifting Twisted Machinery released Sub. Machine Gun 1004 | -10/Subcaves | Shifting Twisted Machinery released Battle Rifle 1098 | -10/Subcaves | Core integrity fell below 50% 1132 | -10/Subcaves | Lost 6 parts (1p2n1u2w) 1469 | -10/Subcaves | Shifting Twisted Machinery released Mak. Leg 1707 | -10/Subcaves | Core integrity fell below 20% 1716 | -10/Subcaves | Destroyed by GS-2EC(R) with Subdweller Laser Last Messages --------------- 01166_ Subatomizers dissect the Sub. Power Source. 01175_ System corrupted: Energy discharge (-40). 01184_ Acquired Sub. Power Source. 01185_ Acquired 41 matter. 01192_ Acquired Scrap Shield Fragment. 01256_ System corrupted: Energy discharge (-32). 01292_ 37-IVS(u) builds Twisted Machinery. 01305_ Sneak attack on 37-IVS(u). 01359_ 37-IVS(u) builds Twisted Machinery. Mak. Leg falls loose from the Twisted Machinery. 01514_ Acquired Mak. Leg. 01590_ System corrupted: Heat flow error (+185). 01621_ FC-LH5(R) destroyed. 01633_ Acquired Sub. Optics. 01634_ Acquired 54 matter. 01638_ XX2LAG2FFZXM 0=VWYQ8ODR&MVBIOAJP: